Cogmind - Beta 15 @@@ ROGUE MODE // 2025.05.18 @ 13:22:49 Player: Terminus Result: Destroyed by 31-35G(R) with Subdweller Beam Cannon Performance ------------- Evolutions (0) 0 Regions Visited (2) 400 Robots Destroyed (45) 225 Value Destroyed (868) 868 Prototype IDs (11) 220 Alien Tech Used (0) 0 Bonus (0) 0 TOTAL SCORE: 1713 Bonus ------- None Cogmind --------- Core Integrity 0/250 Matter 155/300 Energy 230/250 System Corruption 2% Temperature Cool (9) Movement Treading (160) Location -10/Subcaves Parts ------- > --- POWER (1) -------- Ion Engine > --- PROPULSION (2) --- Light Treads Spiked Treads > --- UTILITY (2) ------ Large Storage Unit Makeshift Kinetic Plating > --- WEAPON (2) ------- Subdweller Machine Gun Subdweller Machine Gun > --- INVENTORY (15) --- Light Ion Engine Light Treads Spiked Treads Arachnoskeleton Heat Sink Seismic Detector Makeshift Hacking Suite EM Pulse Gun Small Laser Small Laser Subdweller Machine Gun Grenade Launcher Peak State ------------ > --- POWER ------------ Ion Engine > --- PROPULSION ------- Light Treads Spiked Treads > --- UTILITY ---------- Large Storage Unit Makeshift Kinetic Plating > --- WEAPON ----------- Battle Rifle Subdweller Machine Gun > --- INVENTORY -------- Light Ion Engine Light Treads Spiked Treads Arachnoskeleton Heat Sink Seismic Detector Makeshift Hacking Suite EM Pulse Gun Small Laser Small Laser Light Assault Rifle Light Assault Rifle Grenade Launcher [Rating: 16] Favorites ----------- Power Ion Engine Engine Ion Engine Propulsion Light Treads Treads Light Treads Utility Large Storage Unit Device Heat Sink Storage Large Storage Unit Protection Backup Plating I Weapon Light Assault Rifle Energy Gun Small Laser Ballistic Gun Light Assault Rifle Launcher Grenade Launcher Build | -11 -10 -10 ------- Run | Yrd Mat Sub Slots Evolved . | . . . Power . | . . . Propulsion . | . . . Utility . | . . . Weapon . | . . . Parts Attached 25 | 7 7 11 Power 3 | 1 2 . Engine 3 | 1 2 . Core . | . . . Reactor . | . . . Propulsion 5 | 2 . 3 Treads 5 | 2 . 3 Leg . | . . . Wheel . | . . . Hover . | . . . Flight . | . . . Utility 5 | 1 2 2 Device 2 | . 1 1 Storage 2 | 1 1 . Processor . | . . . Hackware . | . . . Protection 1 | . . 1 Artifact . | . . . Weapon 12 | 3 3 6 Energy Gun 4 | 2 . 2 Energy Cannon . | . . . Ballistic Gun 6 | 1 2 3 Ballistic Cannon . | . . . Launcher 2 | . 1 1 Special Weapon . | . . . Impact Weapon . | . . . Slashing Weapon . | . . . Piercing Weapon . | . . . Special Melee Weapon . | . . . Unidentified Prototypes . | . . . Parts Lost 9 | . 2 7 Power 1 | . 1 . Propulsion 2 | . . 2 Utility 2 | . 1 1 Weapon 4 | . . 4 Highest Loss Streak 3 | . 1 3 To Critical Strikes . | . . . Average Backups 11 | . 10 13 Power 1 | . 1 1 Propulsion 2 | . 1 2 Utility 2 | . 1 2 Weapon 5 | . 5 6 Tool/Special . | . . . Unused Backups 9 | . . 9 Power 1 | . . 1 Propulsion 4 | . . 4 Utility 3 | . . 3 Weapon 1 | . . 1 Tool/Special . | . . . Average Slot Usage (%) 97 | . 95 98 Engine 13 | . 13 14 Treads 28 | . 28 28 Device 5 | . 1 8 Storage 14 | . 14 14 Protection 6 | . 8 4 Energy Gun 5 | . 3 6 Ballistic Gun 22 | . 24 19 Peak Build Rating 16 | 6 8 16 Average Rating 8 | 4 7 10 On Entrance 4 | . 6 8 Naked Turns . | . . . Heaviest Build 39 | 10 31 39 Greatest Support 40 | 40 40 40 Greatest Overweight (x) 2 | 2 . . Average Overweight (x) . | . . . Largest Inventory Capacity 15 | 8 15 15 Average Capacity 14 | 7 13 15 Most Carried 15 | 1 14 15 Average Carried 11 | . 10 13 Final Capacity 15 | 8 15 15 Final Carried 14 | 1 14 14 Class Distribution -------------------- 97% | Mutant Dominant Class ---------------- Mutant | -10/Materials Mutant | -10/Subcaves Resources | -11 -10 -10 ----------- Run | Yrd Mat Sub Matter Collected 1178 | 221 428 529 Remotely . | . . . Salvage Created 881 | . 585 296 Parts 65 | . 41 24 Haulers Intercepted 2 | . 2 . Recyclers Shooed 2 | . 2 . Parts Field Recycled . | . . . Retrieved Matter . | . . . Parts Self-Destructed 14 | . . 14 Prevented . | . . . Kills | -11 -10 -10 ------- Run | Yrd Mat Sub Combat Hostiles Destroyed 34 | . 20 14 Guns 13 | . 7 6 AOE 21 | . 13 8 Classes Destroyed 12 | . 9 3 Worker 1 | . 1 . Builder 1 | . 1 . Tunneler 1 | . 1 . Hauler 2 | . 2 . Recycler 1 | . 1 . Mechanic 1 | . 1 . Turret 2 | . . 2 Watcher 2 | . 2 . Swarmer 20 | . 12 8 Grunt 8 | . 8 . Sentry 1 | . . 1 Subdweller 5 | . . 5 Best Kill Streak 6 | . 5 6 Combat Bots Only 4 | . 4 4 Max Kills in Single Turn 3 | . 3 2 Gunslinging . | . . . Exploded 3 | . 3 2 Melee . | . . . Uniques/NPCs Destroyed . | . . . Combat | -11 -10 -10 -------- Run | Yrd Mat Sub Hostile Shots Fired 147 | . 68 79 Missed 51 | . 20 31 Hits 96 | . 48 48 Projectile 96 | . 48 48 Critical Strikes 1 | . 1 . Damage Taken 1438 | . 565 873 Core 250 | . 93 157 Absorbed by Shields . | . . . Ignored by Resistances 4 | . . 4 Core Remaining (%) 100 | 100 . . Volleys Fired 127 | . 58 69 Largest 2 | . 2 2 Hottest 80 | . 60 80 Shots Fired 209 | . 102 107 Gun 168 | . 88 80 Cannon . | . . . Launcher 41 | . 14 27 Special . | . . . Kinetic 120 | . 75 45 Thermal 48 | . 13 35 Explosive 41 | . 14 27 Electromagnetic . | . . . Robot Hit Streak 14 | . 6 14 Robot Miss Streak 4 | . 4 2 Penetration Max . | . . . Secondary Targets . | . . . Shots Hit Robots 120 | . 59 61 Core Hits 78 | . 44 34 Critical Kills 1 | . . 1 Critical Parts Destroyed . | . . . Critical Strikes 2 | . . 2 Destroy 2 | . . 2 Melee Attacks . | . . . Impact . | . . . Slashing . | . . . Piercing . | . . . Sneak Attacks . | . . . Combat Hostiles . | . . . Follow-up Attacks . | . . . Damage Inflicted 3187 | . 1714 1473 Guns 1277 | . 634 643 Cannons . | . . . Explosions 1900 | . 1070 830 Melee . | . . . Ramming 10 | . 10 . Kinetic 870 | . 522 348 Thermal 493 | . 198 295 Explosive 1814 | . 984 830 Electromagnetic . | . . . Impact . | . . . Slashing . | . . . Piercing . | . . . Highest Corruption 2 | . 2 2 Average Corruption 1 | . 1 2 Corruption Purged . | . . . Corruption Blocked . | . . . Effects 23 | . 8 15 Message Errors 3 | . 1 2 Matter Fused 7 | . 3 4 Heat Flow Errors 3 | . 2 1 Energy Discharges 1 | . . 1 Data Loss (minor) 5 | . 2 3 Data Loss (major) 1 | . . 1 Misfires 2 | . . 2 Weapon Failures 1 | . . 1 Overload Shots . | . . . Overflow Damage 42 | . 32 10 Projectiles . | . . . Explosions 42 | . 32 10 Melee . | . . . Knockbacks . | . . . Impact . | . . . Kinetic . | . . . Secondary . | . . . Self-Inflicted Damage 28 | . . 28 Shots 3 | . . 3 Rammed 2 | . 2 . Targets Rammed 2 | . 2 . Kicked . | . . . Crushed . | . . . Highest Temperature 231 | . 231 189 Average Temperature 35 | . 32 114 Received Heat Transfer 312 | . 177 135 Siege Activations . | . . . Martial Activations . | . . . Shielding Activations . | . . . Robots Disrupted . | . . . Combat Hostiles . | . . . Robots Corrupted . | . . . Combat Hostiles . | . . . Parts Fried . | . . . Impact Corruptions . | . . . Robots Melted . | . . . Combat Hostiles . | . . . Parts Melted 1 | . 1 . Heat Transferred 975 | . 300 675 Parts Sabotaged . | . . . Parts Stolen . | . . . Parts Stripped . | . . . Power Chain Reactions . | . . . Alert | -11 -10 -10 ------- Run | Yrd Mat Sub Maximum Alert Level 1 | . 1 . Low Security (%) 43 | 100 41 . Level 1 56 | . 58 . Level 2 . | . . . Level 3 . | . . . Level 4 . | . . . Level 5 . | . . . High Security . | . . . Max Security . | . . . Peak Influence 330 | . 330 . Initial . | . . . Average 191 | . 199 . Influence Increases 1135 | . 695 440 Destroy 0b10 Robot/C 620 | . 400 220 Destroy 0b10 Robot/NC 45 | . 45 . Destroy Leader 98 | . 88 10 Successful Hack 8 | . 8 . Select Force Hacks 30 | . 30 . Disable Machine 15 | . 15 . Destroy Structure 64 | . 64 . Lose Combat Pursuer 255 | . 45 210 Influence Decreases 897 | . 429 468 Entered New Map 129 | . . 129 Time Decay 701 | . 409 292 Lost Part 67 | . 20 47 Squads Dispatched 3 | . 3 . Investigation 2 | . 2 . Extermination . | . . . Reinforcement 1 | . 1 . Assault . | . . . Garrison . | . . . Intercept . | . . . Searches Triggered . | . . . Construction Impeded . | . . . Haulers Reinforced . | . . . Active Scanning Responses . | . . . Cargo Convoy Interrupts . | . . . Stealth | -11 -10 -10 --------- Run | Yrd Mat Sub Distress Signals 1 | . 1 . Communications Jammed . | . . . Distress Signals . | . . . Times Spotted 49 | . 31 18 Peak Tracking Total 4 | . 4 3 Tactical Retreats 6 | . 3 3 Traps | -11 -10 -10 ------- Run | Yrd Mat Sub Traps Triggered 3 | . 2 1 Indirectly . | . . . Trap Hack Attempts . | . . . Triggered . | . . . Disarmed . | . . . Reprogrammed . | . . . Reused . | . . . Traps Extracted . | . . . Installed . | . . . Triggered . | . . . Machines | -11 -10 -10 ---------- Run | Yrd Mat Sub Machines Disabled 5 | . 1 4 Max in Single Turn 2 | . 1 2 Machines Repaired . | . . . Machines Dismantled . | . . . Machines Sabotaged . | . . . Overloaded Fab Kills . | . . . Hacking | -11 -10 -10 --------- Run | Yrd Mat Sub Machines Accessed 9 | . 8 1 Terminals 6 | . 6 . Fabricators . | . . . Repair Stations 1 | . 1 . Recycling Units 1 | . 1 . Scanalyzers . | . . . Garrison Access . | . . . Total Hacks 30 | . 21 9 Successful 18 | . 9 9 Failed 12 | . 12 . Catastrophic . | . . . Database Lockouts . | . . . Manual 20 | . 20 . Terminals 19 | . 19 . Fabricators . | . . . Repair Stations 1 | . 1 . Recycling Units 1 | . 1 . Scanalyzers . | . . . Garrison Access . | . . . Terminal Hacks 9 | . . 9 Record 8 | . . 8 Proto ID Catalog 1 | . . 1 Fabricator Hacks . | . . . Repair Station Hacks 1 | . 1 . Refit 1 | . 1 . Recycling Unit Hacks . | . . . Scanalyzer . | . . . Garrison Access Hacks . | . . . Unauthorized Hacks 8 | . 8 . Terminals 7 | . 7 . Botnet 2 | . 2 . Skim 5 | . 5 . Fabricators . | . . . Repair Stations . | . . . Recycling Units 1 | . 1 . Tunnel 1 | . 1 . Scanalyzers . | . . . Garrison Access . | . . . Data Cores Recovered . | . . . Used . | . . . Hacking Detections 6 | . 6 . Full Trace Events . | . . . Feedback Events . | . . . Feedback Blocked . | . . . Robot Schematics Acquired . | . . . Robots Built . | . . . Authchips . | . . . Time . | . . . Total Robot Build Rating . | . . . Part Schematics Acquired . | . . . Parts Built . | . . . Authchips . | . . . Time . | . . . Total Part Build Rating . | . . . Parts Repaired . | . . . Time . | . . . Parts Recycled . | . . . Recycled Matter . | . . . Retrieved Matter . | . . . Retrieved Components . | . . . Parts Scanalyzed . | . . . Part Schematics Acquired . | . . . Parts Damaged . | . . . Bothacking | -11 -10 -10 ------------ Run | Yrd Mat Sub Used RIF Installer . | . . . Robots Hacked . | . . . Non-combat . | . . . Combat . | . . . Robot Hacks Applied . | . . . Relay Couplers Released . | . . . Fabnet Peak Effective % . | . . . Robots Rewired . | . . . Allies Hacked . | . . . Hacks Repelled . | . . . Allies | -11 -10 -10 -------- Run | Yrd Mat Sub Total Allies . | . . . Largest Group . | . . . Highest-Rated Group . | . . . Highest-Rated Ally . | . . . Total Orders . | . . . Ally Attacks . | . . . Total Damage . | . . . Kills . | . . . Allies Corrupted . | . . . Allies Melted . | . . . Intel | -11 -10 -10 ------- Run | Yrd Mat Sub Active Infowar (turns) . | . . . Robot Analysis Total . | . . . Derelict Logs Recovered 2 | . . 2 Drone Launches . | . . . Drone Recoveries . | . . . Exploration | -11 -10 -10 ------------- Run | Yrd Mat Sub Turns Passed 2997 | 55 1356 1586 Spaces Moved 1535 | 39 669 827 Core 19 | 19 . . Treads 1516 | 20 669 827 Legs . | . . . Wheels . | . . . Hover . | . . . Flight . | . . . Fastest Speed 50 | 50 160 160 Average Speed 158 | 115 160 160 Slowest Speed 160 | 160 160 160 Overloaded Moves . | . . . Propulsion Burnouts . | . . . Robots Hopped . | . . . Potential Cave-ins . | . . . Cave-ins Triggered . | . . . Exploration Rate (%) 51 | 4 97 52 Regions Visited 2 Branch Regions 1 Pre-discovered Areas 2 | . 1 1 Known Exits Taken 1 | . 1 . Unknown Exits Taken 1 | 1 . . Scrap Searched 6 | . . 6 Spaces Dug 13 | . . 13 Terrain Destroyed 165 | . 60 105 Melee . | . . . Projectile . | . . . AOE 165 | . 60 105 Terrain Rammed . | . . . Walls Destroyed . | . . . Machines Disabled . | . . . Actions | -11 -10 -10 --------- Run | Yrd Mat Sub Total 1882 | 46 851 985 Wait 144 | . 93 51 Move 1533 | 38 668 827 Hop . | . . . Pick Up 24 | 1 13 10 Fast Attach 7 | 6 1 . Attach 9 | . 2 7 Detach . | . . . Swap 29 | 1 13 15 Drop 7 | . 1 6 Fire 127 | . 58 69 Melee . | . . . Ram . | . . . Kick . | . . . Crush 2 | . 2 . Escape Stasis . | . . . Rewire . | . . . Trap . | . . . Miscellaneous . | . . . Route ------- -11/Scrapyard -10/Materials (discovered 5 exits: *Mat x3 / *Min / *Sub) -10/Subcaves (discovered 3 exits: Mat / [*Rec] / [*Scr]) History --------- Turn | Location | Event 5 | -11/Scrapyard | Discovered new exit (range 16) 56 | -11/Scrapyard | Entered Materials 323 | -10/Materials | Build established: Mutant 455 | -10/Materials | Discovered new exit (range 13) 556 | -10/Materials | Derelicts attacked the area 641 | -10/Materials | Discovered new exit (range 15) 745 | -10/Materials | Discovered new exit (range 11) 1001 | -10/Materials | Learned 2 Mines zone layouts 1046 | -10/Materials | Identified exit to Materials 1083 | -10/Materials | Learned location of 1 exit from Recycling 1111 | -10/Materials | Learned Storage trap positions 1128 | -10/Materials | Loaded intel: 1 recycling unit location 1134 | -10/Materials | Identified exit to Subcaves 1150 | -10/Materials | Identified exit to Mines 1174 | -10/Materials | Learned 4 Materials zone layouts 1412 | -10/Materials | Entered Subcaves 1413 | -10/Subcaves | Approached by a straggling Scientist 1413 | -10/Subcaves | Identified exit to Materials 1448 | -10/Subcaves | Learned Materials stockpile data 1485 | -10/Subcaves | Learned location of Zion (-7) 1491 | -10/Subcaves | Scientist uncovered a shortcut to Scraptown 1699 | -10/Subcaves | Ambushed by Subdweller buried in earth 1744 | -10/Subcaves | Lost 3 parts (1n1u1w) 1787 | -10/Subcaves | Core integrity fell below 50% 2186 | -10/Subcaves | Core integrity fell below 20% 2557 | -10/Subcaves | Shifting Twisted Machinery released Enh. Flamer 2662 | -10/Subcaves | Discovered new exit (range 12) 2737 | -10/Subcaves | Visited 4L-MR0's lab 2781 | -10/Subcaves | Found Arachnoskeleton 2918 | -10/Subcaves | Shifting Twisted Machinery released Sub. Machine Gun 2919 | -10/Subcaves | Shifting Twisted Machinery released Spk. Treads 2997 | -10/Subcaves | Disturbed a concealed Subdweller 2998 | -10/Subcaves | Destroyed by 31-35G(R) with Subdweller Beam Cannon Last Messages --------------- 02937_ Subatomizers dissect the Lgt. Treads. 02962_ Dropped Lgt. Assault Rifle. 02963_ Acquired Sub. Machine Gun. 02991_ Searching scrap... 02991_ Found Sub. Beam Cannon. 02991_ Found Mak. Spear. 02991_ Found 31 Matter. 02992_ Acquired 31 matter. 02993_ Searching scrap... 02993_ Found Battle Cannon. 02993_ Found Hvy. Battle Rifle. 02993_ Found 39 Matter. 02994_ Acquired 39 matter. 02994_ Searching scrap... 02994_ Found Sub. Power Source. 02994_ Found Sub. Laser. 02994_ Found 43 Matter. 02995_ Acquired 43 matter. 02997_ 31-35G(R) angrily emerges from the Twisted Machinery. 02997_ Battle Rifle destroyed. Map ----- +----------------------------------------------------+ | #?# #?????###+##### ## ##??### | | ## #????###"" ## # <#??# | | #????#"""" " ## ##?## | | ##????# " """""" ## # #?# | | #?????#""" """ "### ## #?## # | | ###?????##"" " ""#### ## "##### | | ##????????#########??### ##? # ## | | #??????????????????????# #??# # #"" ### | | #??????????????????????# ##?########" ##### | | ### #??????????????????????###?## ##??# #?# | | ??## ##?????????????????????????#""""##### ### | | ???# #??????????????????????????#""="## ## | | ???## #????????????????????????###" " "" | | ????####????????????????????????#"""" ### | | ????????????????????????????????# "" ###" | | ???????????????????????????????##"" #####?# | | ???????????????????????????????#"" [#?????### | | ???????????????????????????????#" ##??????## | | ???????????????????????????????## #???????## | | ????????????????????????????????# #????????## | | ????????????????????????????????## #?????????# # | | ?????????????????????????????????# #?????????### | | ????????????????????????????????## ##???????????? | | ????????????????????????????????# #???????????? | | ??????????????????????######????## #??????###??? | | ?????????????????????##